Cogmind - Beta 15 @@@ ROGUE MODE // 2025.05.11 @ 18:38:16 Player: LustLizard Result: Destroyed by P-70 Sage with Tesla Rifle Performance ------------- Evolutions (3) 1500 Regions Visited (6) 1200 Robots Destroyed (61) 305 Value Destroyed (1562) 1562 Prototype IDs (4) 80 Alien Tech Used (0) 0 Bonus (300) 300 TOTAL SCORE: 4947 Bonus ------- Aligned with FarCom 300 Cogmind --------- Core Integrity 0/700 Matter 97/300 Energy 100/100 System Corruption 49% Temperature Cool (0) Movement Flying (455) Ox6 Location -7/Factory Parts ------- > --- POWER (1) -------- (None) > --- PROPULSION (4) --- Improved VTOL Module > --- UTILITY (6) ------ Improved Heat Sink Medium Storage Unit Large Storage Unit Improved Terrain Scan Processor > --- WEAPON (2) ------- (None) > --- INVENTORY (15) --- Light Deuterium Engine Light Nuclear Core Light Nuclear Core Peak State ------------ > --- POWER ------------ Improved Deuterium Engine > --- PROPULSION ------- Armored Treads Cesium-ion Thruster Improved VTOL Module Improved VTOL Module > --- UTILITY ---------- Large Storage Unit Improved Terrain Scan Processor Improved Propulsion Shielding Improved Utility Shielding Hardened Medium Armor Plating Hardlight Generator > --- WEAPON ----------- Latent Energy Streamer Flak Cannon > --- INVENTORY -------- Light Deuterium Engine Light Nuclear Core Light Nuclear Core Improved VTOL Module Improved VTOL Module Improved VTOL Module Improved VTOL Module Improved Heat Sink Medium Storage Unit Improved Sensor Array Heavy Missile Launcher Great Axe [Rating: 51] Favorites ----------- Power Ion Engine Engine Ion Engine Propulsion Light Treads Treads Light Treads Wheel Armored Wheel Flight Unit Improved VTOL Module Utility Large Storage Unit Device Heat Sink Storage Large Storage Unit Processor Terrain Scan Processor Protection Hardened Medium Armor Plating Weapon Medium Laser Energy Gun Medium Laser Energy Cannon Latent Energy Streamer Ballistic Gun Gauss Rifle Ballistic Cannon Flak Cannon Launcher Heavy Missile Launcher Slashing Weapon Axe Build | -11 -10 -10 -10 -9 -8 -7 ------- Run | Yrd Mat Min Exi Min Mat Fac Slots Evolved 6 | . . . . . 4 2 Power . | . . . . . . . Propulsion 2 | . . . . . 1 1 Utility 4 | . . . . . 3 1 Weapon . | . . . . . . . Parts Attached 54 | 6 12 2 3 . 17 14 Power 5 | 1 1 1 . . 1 1 Engine 5 | 1 1 1 . . 1 1 Core . | . . . . . . . Reactor . | . . . . . . . Propulsion 16 | 2 3 . . . 5 6 Treads 5 | 1 2 . . . 2 . Leg . | . . . . . . . Wheel 4 | 1 1 . . . 2 . Hover . | . . . . . . . Flight 7 | . . . . . 1 6 Utility 18 | 1 4 1 1 . 6 5 Device 8 | . 3 . . . 4 1 Storage 4 | 1 1 1 1 . . . Processor 2 | . . . . . 1 1 Hackware . | . . . . . . . Protection 4 | . . . . . 1 3 Artifact . | . . . . . . . Weapon 15 | 2 4 . 2 . 5 2 Energy Gun 6 | 2 2 . . . 2 . Energy Cannon 2 | . . . 2 . . . Ballistic Gun 2 | . 1 . . . 1 . Ballistic Cannon 1 | . . . . . 1 . Launcher 2 | . 1 . . . . 1 Special Weapon . | . . . . . . . Impact Weapon . | . . . . . . . Slashing Weapon 2 | . . . . . 1 1 Piercing Weapon . | . . . . . . . Special Melee Weapon . | . . . . . . . Unidentified Prototypes 4 | . . . 2 . 2 . Parts Lost 21 | . . . . . 3 18 Power 1 | . . . . . . 1 Propulsion 8 | . . . . . . 8 Utility 7 | . . . . . 1 6 Weapon 5 | . . . . . 2 3 Highest Loss Streak 16 | . . . . . 1 16 To Critical Strikes . | . . . . . . . Average Backups 12 | 5 9 11 12 13 14 13 Power 2 | 1 1 1 1 1 2 3 Propulsion 3 | 2 2 1 2 2 3 5 Utility 3 | . 2 4 5 5 4 3 Weapon 3 | 1 3 4 4 5 3 1 Tool/Special . | . . . . . . . Unused Backups 16 | . 5 . 1 . 7 3 Power 5 | . . . . . 2 3 Propulsion 4 | . 3 . . . 1 . Utility 4 | . . . 1 . 3 . Weapon 3 | . 2 . . . 1 . Tool/Special . | . . . . . . . Average Slot Usage (%) 97 | . 97 100 98 100 98 91 Engine 10 | . 13 14 14 14 9 6 Treads 12 | . 14 14 14 14 13 6 Wheel 13 | . 13 14 14 14 13 11 Flight 1 | . . . . . . 7 Device 16 | . 12 14 14 14 22 13 Storage 11 | . 14 14 14 14 9 7 Processor 4 | . . . . . 8 7 Protection 3 | . . . . . 3 13 Energy Gun 15 | . 27 27 26 27 8 . Energy Cannon 2 | . . . . . 3 5 Ballistic Cannon 2 | . . . . . 5 4 Peak Build Rating 51 | 6 8 8 17 9 37 51 Average Rating 20 | 3 7 8 8 9 26 42 On Entrance 11 | . 6 8 8 9 9 37 Naked Turns . | . . . . . . . Heaviest Build 68 | 13 21 30 30 30 59 68 Greatest Support 24 | 16 16 16 16 16 24 24 Greatest Overweight (x) 6 | . 1 1 1 1 3 6 Average Overweight (x) 1 | . . 1 1 1 2 2 Largest Inventory Capacity 15 | 8 10 15 15 15 15 15 Average Capacity 13 | 7 9 13 15 15 15 15 Most Carried 15 | 8 10 12 15 13 15 15 Average Carried 12 | 5 9 11 12 13 14 13 Final Capacity 15 | 8 10 15 15 15 15 15 Final Carried 15 | 6 10 12 13 13 15 3 Class Distribution -------------------- 52% | Mutant 21% | Skirmisher 13% | Scavenger-Skirmisher 8% | Assassin 4% | Scavenger-Mutant Dominant Class ---------------- Mutant | -10/Materials Mutant | -10/Mines Mutant | -10/Exiles Mutant | -9/Mines Skirmisher | -8/Materials Skirmisher | -7/Factory Resources | -11 -10 -10 -10 -9 -8 -7 ----------- Run | Yrd Mat Min Exi Min Mat Fac Matter Collected 1284 | 222 232 50 . 40 560 180 Remotely . | . . . . . . . Salvage Created 1703 | . 491 106 . 8 612 486 Parts 111 | . 25 10 . 4 38 34 Haulers Intercepted 5 | . 1 . . . 4 . Recyclers Shooed 5 | . 1 2 . . 1 1 Parts Field Recycled . | . . . . . . . Retrieved Matter . | . . . . . . . Parts Self-Destructed . | . . . . . . . Prevented . | . . . . . . . Kills | -11 -10 -10 -10 -9 -8 -7 ------- Run | Yrd Mat Min Exi Min Mat Fac Combat Hostiles Destroyed 37 | . 10 5 . 4 12 6 Guns 12 | . 9 1 . . 2 . Cannons 11 | . . . . . 10 1 AOE 11 | . . 3 . 4 . 4 Classes Destroyed 13 | . 4 1 . . 5 3 Worker 8 | . . . . . 3 5 Builder 2 | . . . . . 1 1 Tunneler 1 | . . . . . . 1 Hauler 5 | . 1 . . . 4 . Mechanic 1 | . . . . . . 1 Watcher 7 | . 2 . . . 3 2 Swarmer 14 | . . 3 . 4 3 4 Grunt 16 | . 9 2 . . 5 . Duelist 1 | . . . . . 1 . Sentry 3 | . . . . . 2 1 Hunter 1 | . . . . . 1 . Programmer 1 | . . . . . . 1 Subdweller 1 | . 1 . . . . . Best Kill Streak 6 | . 2 3 . 4 3 6 Combat Bots Only 4 | . 2 3 . 4 3 4 Max Kills in Single Turn 6 | . 1 3 . 2 1 6 Gunslinging . | . . . . . . . Exploded 4 | . . 3 . 2 . 4 Melee . | . . . . . . . Uniques/NPCs Destroyed . | . . . . . . . Combat | -11 -10 -10 -10 -9 -8 -7 -------- Run | Yrd Mat Min Exi Min Mat Fac Hostile Shots Fired 310 | . 41 11 . 6 52 200 Missed 82 | . 14 4 . . 9 55 Hits 228 | . 27 7 . 6 43 145 Projectile 228 | . 27 7 . 6 43 145 Critical Strikes 11 | . 2 . . . 1 8 Actively Blocked 2 | . . . . . . 2 Damage Taken 4062 | . 375 110 . 76 682 2819 Core 925 | . 90 13 . . 103 719 Absorbed by Shields 68 | . . . . . 68 . Redirected to Shielding 221 | . . . . . . 221 Regen/Repaired (Parts) 152 | . 94 . . . . 58 Core Remaining (%) 79 | 100 . . . 58 81 . Volleys Fired 143 | . 42 10 . 2 68 21 Largest 2 | . 2 2 . 1 2 2 Hottest 110 | . 100 100 . 30 110 97 Shots Fired 250 | . 83 19 . 2 120 26 Gun 159 | . 83 18 . . 58 . Cannon 88 | . . . . . 62 26 Launcher 3 | . . 1 . 2 . . Special . | . . . . . . . Kinetic 83 | . 8 . . . 63 12 Thermal 146 | . 75 18 . . 53 . Explosive 3 | . . 1 . 2 . . Electromagnetic 18 | . . . . . 4 14 Robot Hit Streak 14 | . 10 8 . . 14 4 Robot Miss Streak 10 | . 3 2 . . 10 7 Penetration Max 1 | . . . . . 1 . Secondary Targets 1 | . . 1 . . . . Max Gunslinging Chain 1 | . . 1 . . . . Shots Hit Robots 160 | . 54 12 . . 87 7 Core Hits 145 | . 25 8 . 4 77 31 Critical Kills . | . . . . . . . Critical Parts Destroyed 1 | . . . . . 1 . Critical Strikes 10 | . 2 2 . . 6 . Burn 9 | . 2 2 . . 5 . Destroy 1 | . . . . . 1 . Melee Attacks 3 | . . . . . 3 . Impact . | . . . . . . . Slashing 3 | . . . . . 3 . Piercing . | . . . . . . . Sneak Attacks . | . . . . . . . Combat Hostiles . | . . . . . . . Follow-up Attacks . | . . . . . . . Damage Inflicted 4183 | . 644 284 . 175 1707 1373 Guns 1262 | . 644 150 . . 468 . Cannons 1037 | . . . . . 923 114 Explosions 1884 | . . 134 . 175 316 1259 Melee . | . . . . . . . Ramming . | . . . . . . . Kinetic 1104 | . 63 . . . 960 81 Thermal 1217 | . 581 150 . . 458 28 Explosive 309 | . . 134 . 175 . . Electromagnetic 1553 | . . . . . 289 1264 Impact . | . . . . . . . Slashing . | . . . . . . . Piercing . | . . . . . . . Highest Corruption 49 | . . . . . 12 49 Average Corruption 17 | . . . . . 3 26 Corruption Purged . | . . . . . . . Corruption Blocked . | . . . . . . . Effects 24 | . . . . . 6 18 Message Errors 7 | . . . . . 2 5 Matter Fused 5 | . . . . . 1 4 Heat Flow Errors 3 | . . . . . . 3 Parts Rejected 2 | . . . . . . 2 Data Loss (minor) 1 | . . . . . . 1 Misfires 3 | . . . . . 2 1 Alerts 2 | . . . . . 1 1 Weapon Failures 1 | . . . . . . 1 Overload Shots . | . . . . . . . Overflow Damage 68 | . . . . . 10 58 Projectiles . | . . . . . . . Explosions 68 | . . . . . 10 58 Melee . | . . . . . . . Knockbacks 28 | . . . . . 24 4 Impact . | . . . . . . . Kinetic 27 | . . . . . 23 4 Secondary 1 | . . . . . 1 . Self-Inflicted Damage 484 | . . 22 . 28 87 347 Shots 10 | . . 1 . 1 1 7 Rammed . | . . . . . . . Targets Rammed . | . . . . . . . Kicked . | . . . . . . . Crushed . | . . . . . . . Highest Temperature 277 | . 277 81 . . 20 272 Average Temperature 65 | . 81 30 . . 9 65 Received Heat Transfer 492 | . 231 54 . . 159 48 Effects 1 | . 1 . . . . . Energy Bleed 1 | . 1 . . . . . Siege Activations . | . . . . . . . Martial Activations . | . . . . . . . Shielding Activations . | . . . . . . . Robots Disrupted . | . . . . . . . Combat Hostiles . | . . . . . . . Robots Corrupted 1 | . . . . . . 1 Combat Hostiles 1 | . . . . . . 1 Parts Fried 6 | . . . . . . 6 Impact Corruptions . | . . . . . . . Robots Melted 2 | . 1 1 . . . . Combat Hostiles 2 | . 1 1 . . . . Parts Melted 7 | . 4 3 . . . . Heat Transferred 3833 | . 1709 592 . . 1532 . Parts Sabotaged . | . . . . . . . Parts Stolen . | . . . . . . . Parts Stripped . | . . . . . . . Power Chain Reactions 2 | . . . . . 1 1 Latent Energy Used 2270 | . . . . . 581 1689 LE Corruption 39 | . . . . . 10 29 Alert | -11 -10 -10 -10 -9 -8 -7 ------- Run | Yrd Mat Min Exi Min Mat Fac Maximum Alert Level 1 | . . . . . 1 1 Low Security (%) 96 | 100 100 100 . 100 99 84 Level 1 3 | . . . . . . 15 Level 2 . | . . . . . . . Level 3 . | . . . . . . . Level 4 . | . . . . . . . Level 5 . | . . . . . . . High Security . | . . . . . . . Max Security . | . . . . . . . Peak Influence 311 | . 80 91 . 140 208 311 Initial 94 | . . 5 . . . 94 Average 47 | . 19 24 . 62 56 77 Influence Increases 1477 | . 275 126 . 140 517 419 Destroy 0b10 Robot/C 720 | . 180 100 . 80 240 120 Destroy 0b10 Robot/NC 120 | . 15 . . . 55 50 Destroy Leader 194 | . 56 20 . 10 74 34 Successful Hack 37 | . 22 . . . 12 3 Disable Machine 210 | . . . . 45 30 135 Destroy Structure 136 | . 2 6 . 5 61 62 Partial Spotted 30 | . . . . . 30 . Lose Combat Pursuer 30 | . . . . . 15 15 Influence Decreases 1374 | . 260 141 . 140 309 524 Entered New Map 124 | . . 10 . . . 114 Time Decay 1050 | . 260 131 . 140 289 230 Lost Part 200 | . . . . . 20 180 Squads Dispatched 13 | . 4 . . . 4 5 Investigation 4 | . 4 . . . . . Extermination 2 | . . . . . . 2 Reinforcement 6 | . . . . . 3 3 Assault . | . . . . . . . Garrison 1 | . . . . . 1 . Intercept . | . . . . . . . Searches Triggered . | . . . . . . . Construction Impeded 1 | . . . . . . 1 Haulers Reinforced . | . . . . . . . Active Scanning Responses . | . . . . . . . Cargo Convoy Interrupts . | . . . . . . . Stealth | -11 -10 -10 -10 -9 -8 -7 --------- Run | Yrd Mat Min Exi Min Mat Fac Distress Signals 4 | . 2 . . . 2 . Communications Jammed . | . . . . . . . Distress Signals . | . . . . . . . Times Spotted 64 | . 19 2 . 4 25 14 Peak Tracking Total 5 | . 3 2 . 4 3 5 Tactical Retreats 3 | . 1 . . . 1 1 Traps | -11 -10 -10 -10 -9 -8 -7 ------- Run | Yrd Mat Min Exi Min Mat Fac Traps Triggered 5 | . 3 . . . 1 1 Indirectly . | . . . . . . . Trap Hack Attempts . | . . . . . . . Triggered . | . . . . . . . Disarmed . | . . . . . . . Reprogrammed . | . . . . . . . Reused . | . . . . . . . Traps Extracted . | . . . . . . . Installed . | . . . . . . . Triggered . | . . . . . . . Machines | -11 -10 -10 -10 -9 -8 -7 ---------- Run | Yrd Mat Min Exi Min Mat Fac Machines Disabled 14 | . . . . 3 2 9 Max in Single Turn 2 | . . . . 2 1 2 Machines Repaired . | . . . . . . . Machines Dismantled . | . . . . . . . Machines Sabotaged . | . . . . . . . Overloaded Fab Kills . | . . . . . . . Hacking | -11 -10 -10 -10 -9 -8 -7 --------- Run | Yrd Mat Min Exi Min Mat Fac Machines Accessed 11 | . 6 . . . 3 2 Terminals 8 | . 5 . . . 3 . Fabricators . | . . . . . . . Repair Stations 2 | . 1 . . . . 1 Recycling Units . | . . . . . . . Scanalyzers . | . . . . . . . Garrison Access 1 | . . . . . . 1 Total Hacks 32 | . 22 . . . 7 3 Successful 21 | . 15 . . . 4 2 Failed 11 | . 7 . . . 3 1 Catastrophic 2 | . 2 . . . . . Database Lockouts . | . . . . . . . Manual 15 | . 12 . 1 . 2 . Terminals 23 | . 16 . . . 7 . Fabricators . | . . . . . . . Repair Stations 8 | . 6 . . . . 2 Recycling Units . | . . . . . . . Scanalyzers . | . . . . . . . Garrison Access 1 | . . . . . . 1 Terminal Hacks 6 | . 4 . . . 2 . Robot Analysis 2 | . 2 . . . . . Branch Access Points 1 | . . . . . 1 . Alert Level 1 | . . . . . 1 . Locate Traps 2 | . 2 . . . . . Fabricator Hacks . | . . . . . . . Repair Station Hacks 8 | . 6 . . . . 2 Scan Component 4 | . 3 . . . . 1 Repair 4 | . 3 . . . . 1 Recycling Unit Hacks . | . . . . . . . Scanalyzer . | . . . . . . . Garrison Access Hacks . | . . . . . . . Unauthorized Hacks 7 | . 5 . . . 2 . Terminals 7 | . 5 . . . 2 . Assimilate 4 | . 3 . . . 1 . Botnet 3 | . 2 . . . 1 . Fabricators . | . . . . . . . Repair Stations . | . . . . . . . Recycling Units . | . . . . . . . Scanalyzers . | . . . . . . . Garrison Access . | . . . . . . . Data Cores Recovered . | . . . . . . . Used . | . . . . . . . Hacking Detections 9 | . 5 . . . 3 1 Full Trace Events 1 | . 1 . . . . . Feedback Events . | . . . . . . . Feedback Blocked . | . . . . . . . Robot Schematics Acquired . | . . . . . . . Robots Built . | . . . . . . . Authchips . | . . . . . . . Time . | . . . . . . . Total Robot Build Rating . | . . . . . . . Part Schematics Acquired . | . . . . . . . Parts Built . | . . . . . . . Authchips . | . . . . . . . Time . | . . . . . . . Total Part Build Rating . | . . . . . . . Parts Repaired 4 | . 3 . . . . 1 Time 110 | . 78 . . . . 32 Parts Recycled . | . . . . . . . Recycled Matter . | . . . . . . . Retrieved Matter . | . . . . . . . Retrieved Components . | . . . . . . . Parts Scanalyzed . | . . . . . . . Part Schematics Acquired . | . . . . . . . Parts Damaged . | . . . . . . . Bothacking | -11 -10 -10 -10 -9 -8 -7 ------------ Run | Yrd Mat Min Exi Min Mat Fac Used RIF Installer . | . . . . . . . Robots Hacked . | . . . . . . . Non-combat . | . . . . . . . Combat . | . . . . . . . Robot Hacks Applied . | . . . . . . . Relay Couplers Released . | . . . . . . . Fabnet Peak Effective % . | . . . . . . . Robots Rewired . | . . . . . . . Allies Hacked . | . . . . . . . Hacks Repelled . | . . . . . . . Allies | -11 -10 -10 -10 -9 -8 -7 -------- Run | Yrd Mat Min Exi Min Mat Fac Total Allies 2 | . . . . 2 . . Largest Group 2 | . . . . 2 2 . Highest-Rated Group 42 | . . . . 42 42 . Highest-Rated Ally 31 | . . . . 31 31 . Total Orders . | . . . . . . . Ally Attacks 11 | . . . . . 11 . Total Damage 106 | . . . . . 106 . Kills . | . . . . . . . Allies Corrupted . | . . . . . . . Allies Melted 1 | . . . . . 1 . Intel | -11 -10 -10 -10 -9 -8 -7 ------- Run | Yrd Mat Min Exi Min Mat Fac Active Infowar (turns) 3433 | . 764 . . . 1856 813 Sensors 116 | . . . . . . 116 Terrain 2553 | . . . . . 1856 697 Structural 764 | . 764 . . . . . Robot Analysis Total 2 | . 2 . . . . . Derelict Logs Recovered 5 | . . 2 . 3 . . Drone Launches . | . . . . . . . Drone Recoveries . | . . . . . . . Exploration | -11 -10 -10 -10 -9 -8 -7 ------------- Run | Yrd Mat Min Exi Min Mat Fac Turns Passed 5552 | 59 1376 576 300 327 1858 1056 Spaces Moved 3620 | 45 948 454 246 258 1099 570 Core 7 | 7 . . . . . . Treads . | . . . . . . . Legs . | . . . . . . . Wheels 3589 | 38 948 454 246 258 1099 546 Hover . | . . . . . . . Flight 24 | . . . . . . 24 Fastest Speed 50 | 50 100 115 115 115 105 96 Average Speed 118 | 92 111 115 115 115 124 125 Slowest Speed 502 | 100 115 115 115 115 135 502 Overloaded Moves . | . . . . . . . Propulsion Burnouts . | . . . . . . . Robots Hopped . | . . . . . . . Potential Cave-ins . | . . . . . . . Cave-ins Triggered . | . . . . . . . Exploration Rate (%) 55 | 3 98 92 62 59 51 21 Regions Visited 6 Branch Regions 3 Pre-discovered Areas . | . . . . . . . Known Exits Taken 1 | . . . . . 1 . Unknown Exits Taken 5 | 1 1 1 1 1 . . Scrap Searched 2 | . . 1 . 1 . . Spaces Dug 41 | . . 6 . 5 3 27 Terrain Destroyed 156 | . . 6 . 5 61 84 Melee 3 | . . . . . 3 . Projectile . | . . . . . . . AOE 153 | . . 6 . 5 58 84 Terrain Rammed . | . . . . . . . Walls Destroyed . | . . . . . . . Machines Disabled . | . . . . . . . Actions | -11 -10 -10 -10 -9 -8 -7 --------- Run | Yrd Mat Min Exi Min Mat Fac Total 4653 | 62 1187 490 266 285 1474 889 Wait 659 | . 142 12 . 24 227 254 Move 3614 | 44 947 453 245 257 1098 570 Hop . | . . . . . . . Pick Up 93 | 12 23 7 9 . 30 12 Fast Attach . | . . . . . . . Attach 51 | 6 8 . 2 . 14 21 Detach . | . . . . . . . Swap 35 | . 10 3 2 2 13 5 Drop 55 | . 15 5 8 . 21 6 Fire 143 | . 42 10 . 2 68 21 Melee 3 | . . . . . 3 . Ram . | . . . . . . . Kick . | . . . . . . . Crush . | . . . . . . . Escape Stasis . | . . . . . . . Rewire . | . . . . . . . Trap . | . . . . . . . Miscellaneous . | . . . . . . . Route ------- -11/Scrapyard -10/Materials (discovered 5 exits: [*Mat x3] / [*Min] / [*Sub]) -10/Mines (discovered 2 exits: [*Mat] / *Exi) -10/Exiles -9/Mines -8/Materials (discovered 2 exits: *Fac x2) -7/Factory History --------- Turn | Location | Event 21 | -11/Scrapyard | Discovered new exit (range 15) 60 | -11/Scrapyard | Entered Materials 190 | -10/Materials | Discovered new exit (range 10) 273 | -10/Materials | Discovered new exit (range 8) 311 | -10/Materials | Build established: Mutant 382 | -10/Materials | Discovered new exit (range 5) 560 | -10/Materials | Derelicts attacked the area 603 | -10/Materials | Discovered new exit (range 14) 820 | -10/Materials | Repaired Com. Wheel 847 | -10/Materials | Repaired Med. Laser 876 | -10/Materials | Repaired Ion Engine 979 | -10/Materials | Discovered new exit (range 9) 1436 | -10/Materials | Entered Mines 1671 | -10/Mines | Discovered new exit (range 9) 1960 | -10/Mines | Learned Materials garrison access intel 2008 | -10/Mines | Deemed a non-threat by the Exiles lab entrance 2008 | -10/Mines | Discovered new exit (range 5) 2012 | -10/Mines | Entered Exiles 2040 | -10/Exiles | Met 8R-AWN 2061 | -10/Exiles | Met EX-HEX 2098 | -10/Exiles | Met EX-BIN 2111 | -10/Exiles | Aligned with FarCom system 2113 | -10/Exiles | Given EX-Vault access code 2139 | -10/Exiles | Opened EX-Vault 2145 | -10/Exiles | Found Prototype Energy Cannon 2146 | -10/Exiles | Identified Latent Energy Streamer 2150 | -10/Exiles | Found Prototype Energy Cannon 2151 | -10/Exiles | Identified Gui. Plasma Cannon 2160 | -10/Exiles | Found Prototype Device 2201 | -10/Exiles | Warned to stay clear of 0b10 Research branches 2236 | -10/Exiles | Met EX-DEC 2301 | -10/Exiles | Discovered new exit (range 11) 2312 | -10/Exiles | Left Exiles lab with Latent Energy Streamer 2312 | -10/Exiles | Entered Mines 2354 | -9/Mines | Learned Materials terminal intel 2413 | -9/Mines | Learned Materials terminal intel 2478 | -9/Mines | Discovered new exit (range 13) 2639 | -9/Mines | Entered Materials 2639 | -8/Materials | Accompanied by 2 allies 2639 | -8/Materials | Evolved 4 slots: Propulsion x1, Utility x3 2640 | -8/Materials | Identified exit to Factory 2641 | -8/Materials | Loaded intel: 11 terminal locations 2642 | -8/Materials | Loaded intel: 1 garrison access location 2644 | -8/Materials | Led the pair of lost Derelicts to an unsafe place 2933 | -8/Materials | Build established: Scavenger-Skirmisher 3760 | -8/Materials | Garrison activated, responded to threat 4009 | -8/Materials | Build established: Skirmisher 4424 | -8/Materials | Discovered exit to Factory (range 8) 4493 | -8/Materials | System corruption reached 10% 4497 | -8/Materials | Entered Factory 4497 | -7/Factory | Evolved 2 slots: Propulsion x1, Utility x1 4705 | -7/Factory | Build established: Assassin 5016 | -7/Factory | Build established: Skirmisher 5032 | -7/Factory | Repaired Arm. Wheel 5191 | -7/Factory | System corruption reached 10% 5372 | -7/Factory | System corruption reached 30% 5510 | -7/Factory | Core integrity fell below 50% 5538 | -7/Factory | Core integrity fell below 20% 5553 | -7/Factory | Destroyed by P-70 Sage with Tesla Rifle Last Messages --------------- 05525_ U-05 Engineer lays Concrete. 05528_ Imp. Sensor Array destroyed. 05529_ U-05 Engineer lays Concrete. 05530_ U-05 Engineer builds a Wall. 05530_ U-05 Engineer lays Concrete. 05535_ U-05 Engineer builds a Wall. 05535_ P-60 Hacker resets P-70 Sage, system corruption cleaned. 05536_ U-05 Engineer lays Concrete. 05537_ System corrupted: Component data lost. 05537_ U-05 Engineer lays Concrete. 05538_ U-05 Engineer builds a Door. 05539_ U-05 Engineer builds a Wall. 05547_ Imp. VTOL Module destroyed. 05547_ U-05 Engineer lays Concrete. 05549_ U-05 Engineer builds a Wall. 05550_ Imp. VTOL Module destroyed. 05551_ U-05 Engineer lays Concrete. 05552_ System corrupted: Matter fused (-9). 05552_ U-05 Engineer lays Concrete. Map ----- +----------------------------------------------------+ | ?????????????????????????????????????????????????? | | ?????????????????????????????????????????????????? | | ?????????????????????????????????????????????????? | | ?????????????????????????????????????????????????? | | ?????????????????????????????????????????????????? | | ?????????????????????????????????????????????????? | | ?????????????????????????????????????????????????? | | ??????????? ????????????????????????????????????? | | ???????????# ???#???????????????????????????????? | | ???????????# ??# ??????????????????????????? | | ???????????# ### """"??????????????????????????? | | ???????????# " ??????????????????????????? | | ???????????# #;"""/#?????????????????????????? | | ???????????+ #?????????????????????????? | | ???????????# #??##############?????????? | | ???????????# #??# #?????????? | | ???????????# #??# " #?????????? | | ???????????# #??# #?????????? | | ???????????## #### #????? #?? | | ??????????##; u / #?? ??? | | ??????????# ; ## # T #?? | | ???????????#; # +% " #?? | | ?????????###; u # # #?? | | ??????? # u # #?? #?? | | ??????? ;u * ## #???? #?? | | ??????? # % @/ #?????????? | | ????????????# %pp## ! #?????????? | | ????????????# ###########+###?????????? | | ????????? / #?????????#%#???????????? | | ????????? # #"######### #???????????? | | ????????? ??# %= #??????#????? | | ????????????# g #????? #????? | | ????????????# ##### g = #?####/#####? | | ????????????# ????##""""" [ %[ %#?# #? | | ????????????# ???# [ !*#?# #? | | ????????????? ????# " %### #? | | ??????????????????# #########= / #? | | ??????????????????# #???????# ### #? | | ??????????????????# #???????# #?# #? | | ??????????????????# /??????? #?# ! #? | | ??????????????????# #??????## #?# +? | | ??????????????????# #???????# #?# #? | | ??????????????????# ######### #?#####+####? | | ??????????????????########## ## ####T # #### | | ???????????????????????????# # | | ???????????????????????????# # | | ???????????????????????????# # | | ???????????????????????????# # | | ???????????????????????????# # | | ???????????????????????????# # ########## | +----------------------------------------------------+ Best States ------------- Heat Dissipation 48 Energy Generation 16 Energy Capacity 290 Matter Stores 300 Matter Capacity 300 Sight Range 16 Robot Scan Range 15 Terrain Scan Range 14 Terrain Scan Density 110 Armor Coverage 450 Propulsion Shielding 66 Utility Shielding 66 Evasion (%) 50 Recoil Reduction 1 Item Schematics ----------------- None Robot Schematics ------------------ None Fabricated ------------ Nothing Repaired ---------- Com. Wheel | 23% | -10/Materials Med. Laser | 45% | -10/Materials Ion Engine | 45% | -10/Materials Arm. Wheel | 42% | -7/Factory Alien Tech Used ----------------- None Achievements -------------- None Challenges ------------ None Game ------ Seed RocketSpliceDeflector Manual? 0 Play Time 00:55:14 Cumulative 138.2 hours Start 2025.05.11 @ 14:31:09 End 2025.05.11 @ 18:38:16 Sessions 3 Manual Loads 0 Difficulty Rogue Special Mode None Game No. 131 Rogue 131 Adventurer 0 Explorer 0 Win Type - Total 1 Types 1/0/0/0/0/0/0/0/0/0 Lore% 37 Gallery% 42 Achievement% 37 Wizard Run 0 Options --------- Layout 1 ASCII 0 Keyboard 0 Movement Numpad Keybinds 0 Fullscreen 1 Font 24/Smallcaps Map View 50x35 Zoom Use 0% Tactical HUD 1 Map Filters NONE Filters NONE Steam 1 RUN: 0080a586-82c9-467a-8dfc-abb201322b1f